[Event "Late-Titled-Tuesday-Blitz-April-16-2024"]
[Site "Chess.com"]
[Date "2024.04.16"]
[Round "9"]
[White "Giantgoogachess"]
[Black "Veleamater"]
[Result "1/2-1/2"]
[WhiteElo "2297"]
[BlackElo "2421"]
[TimeControl "180+1"]
[EndTime "15:43:20 PDT"]
[Termination "Game drawn by repetition"]

1. d4 {[%clk 0:03:00.9]} 1... d6 {[%clk 0:02:59.7]} 2. e4 {[%clk 0:03:01]} 2...
g6 {[%clk 0:03:00]} 3. Nc3 {[%clk 0:03:01.3]} 3... Bg7 {[%clk 0:03:00.3]} 4. Be3
{[%clk 0:03:02.2]} 4... a6 {[%clk 0:02:59]} 5. Qd2 {[%clk 0:03:02]} 5... Nf6
{[%clk 0:02:59.2]} 6. Be2 {[%clk 0:03:01.6]} 6... Nc6 {[%clk 0:02:58.1]} 7. Nf3
{[%clk 0:03:00.9]} 7... h5 {[%clk 0:02:55.8]} 8. h3 {[%clk 0:03:00.5]} 8... b5
{[%clk 0:02:55.3]} 9. O-O {[%clk 0:03:01.4]} 9... O-O {[%clk 0:02:53.8]} 10. a3
{[%clk 0:03:01.3]} 10... Bb7 {[%clk 0:02:53.2]} 11. e5 {[%clk 0:02:59.9]} 11...
dxe5 {[%clk 0:02:52.3]} 12. dxe5 {[%clk 0:03:00.8]} 12... Nh7 {[%clk 0:02:50.6]}
13. Qxd8 {[%clk 0:02:58.6]} 13... Raxd8 {[%clk 0:02:48.8]} 14. e6 {[%clk
0:02:59.5]} 14... f5 {[%clk 0:02:38.4]} 15. Rad1 {[%clk 0:02:52.5]} 15... Ne5
{[%clk 0:02:37.9]} 16. Nxe5 {[%clk 0:02:49.5]} 16... Bxe5 {[%clk 0:02:36.7]} 17.
f4 {[%clk 0:02:45.9]} 17... Bg7 {[%clk 0:02:24.5]} 18. Kf2 {[%clk 0:02:45.3]}
18... Nf6 {[%clk 0:02:24.3]} 19. Bf3 {[%clk 0:02:44.2]} 19... Bc8 {[%clk
0:02:11.2]} 20. Bc5 {[%clk 0:02:43]} 20... Rxd1 {[%clk 0:02:10.6]} 21. Rxd1
{[%clk 0:02:42.9]} 21... Re8 {[%clk 0:02:11.2]} 22. a4 {[%clk 0:02:35]} 22... b4
{[%clk 0:01:51.9]} 23. Bxb4 {[%clk 0:02:03.7]} 23... Bxe6 {[%clk 0:01:49.6]} 24.
Bc5 {[%clk 0:02:04.2]} 24... Ne4+ {[%clk 0:01:42.4]} 25. Nxe4 {[%clk 0:02:03.2]}
25... fxe4 {[%clk 0:01:42.5]} 26. Bxe4 {[%clk 0:02:04.1]} 26... Kf7 {[%clk
0:01:39.7]} 27. b3 {[%clk 0:02:00.8]} 27... Bf6 {[%clk 0:01:35.4]} 28. Bd5
{[%clk 0:02:00.2]} 28... Bxd5 {[%clk 0:01:29.4]} 29. Rxd5 {[%clk 0:02:01.1]}
29... Ke6 {[%clk 0:01:29.2]} 30. Rd3 {[%clk 0:01:59.9]} 30... c6 {[%clk
0:01:26.3]} 31. Kf3 {[%clk 0:01:59.9]} 31... Rb8 {[%clk 0:01:22]} 32. Bd4 {[%clk
0:01:59.7]} 32... Rb7 {[%clk 0:01:01.3]} 33. g4 {[%clk 0:01:58.4]} 33... hxg4+
{[%clk 0:01:00.7]} 34. hxg4 {[%clk 0:01:59.3]} 34... Bxd4 {[%clk 0:00:55.9]} 35.
Rxd4 {[%clk 0:02:00.2]} 35... c5 {[%clk 0:00:56.1]} 36. Rd1 {[%clk 0:01:54.5]}
36... c4 {[%clk 0:00:54.1]} 37. bxc4 {[%clk 0:01:55.4]} 37... Rb4 {[%clk
0:00:53.6]} 38. c5 {[%clk 0:01:54.3]} 38... Rxa4 {[%clk 0:00:51.6]} 39. Rb1
{[%clk 0:01:53.7]} 39... Rc4 {[%clk 0:00:50.9]} 40. Rb6+ {[%clk 0:01:53.4]}
40... Kf7 {[%clk 0:00:50.2]} 41. c6 {[%clk 0:01:53.6]} 41... a5 {[%clk
0:00:49.3]} 42. Ra6 {[%clk 0:01:52]} 42... Rxc2 {[%clk 0:00:45.6]} 43. Rxa5
{[%clk 0:01:52.1]} 43... Rxc6 {[%clk 0:00:45]} 44. f5 {[%clk 0:01:51.4]} 44...
Rc3+ {[%clk 0:00:31]} 45. Kf4 {[%clk 0:01:51.5]} 45... Rc4+ {[%clk 0:00:30.3]}
46. Kg5 {[%clk 0:01:51.4]} 46... gxf5 {[%clk 0:00:29.7]} 47. gxf5 {[%clk
0:01:52.3]} 47... Rc1 {[%clk 0:00:28]} 48. Kf4 {[%clk 0:01:50.6]} 48... Rf1+
{[%clk 0:00:27.7]} 49. Ke5 {[%clk 0:01:51.3]} 49... Re1+ {[%clk 0:00:27.6]} 50.
Kf4 {[%clk 0:01:51.5]} 50... Kf6 {[%clk 0:00:27.8]} 51. Ra6+ {[%clk 0:01:51.5]}
51... Kf7 {[%clk 0:00:28]} 52. Rb6 {[%clk 0:01:50.4]} 52... Rf1+ {[%clk
0:00:28]} 53. Ke5 {[%clk 0:01:50.4]} 53... Re1+ {[%clk 0:00:28.2]} 54. Kd5
{[%clk 0:01:50.1]} 54... Re2 {[%clk 0:00:27]} 55. Rc6 {[%clk 0:01:50.4]} 55...
Kg7 {[%clk 0:00:24.6]} 56. Re6 {[%clk 0:01:48.6]} 56... Rd2+ {[%clk 0:00:24.1]}
57. Ke5 {[%clk 0:01:48.7]} 57... Kf7 {[%clk 0:00:24.5]} 58. Ra6 {[%clk
0:01:47.6]} 58... Re2+ {[%clk 0:00:24]} 59. Kf4 {[%clk 0:01:48.1]} 59... Rf2+
{[%clk 0:00:24.3]} 60. Kg5 {[%clk 0:01:47.6]} 60... Rf1 {[%clk 0:00:24.5]} 61.
Rb6 {[%clk 0:01:47.3]} 61... Rg1+ {[%clk 0:00:24.6]} 62. Kf4 {[%clk 0:01:46.8]}
62... Rf1+ {[%clk 0:00:24.9]} 63. Ke5 {[%clk 0:01:45.9]} 63... Re1+ {[%clk
0:00:24.4]} 64. Kf4 {[%clk 0:01:45.7]} 64... Re2 {[%clk 0:00:25.1]} 65. Ra6
{[%clk 0:01:44]} 65... Re1 {[%clk 0:00:25.3]} 66. Rc6 {[%clk 0:01:43.4]} 66...
Rf1+ {[%clk 0:00:25.3]} 67. Ke4 {[%clk 0:01:43.6]} 67... Re1+ {[%clk 0:00:25]}
68. Kd5 {[%clk 0:01:43.9]} 68... Re2 {[%clk 0:00:24.3]} 69. Ra6 {[%clk
0:01:42.8]} 69... Re1 {[%clk 0:00:23.9]} 70. Rb6 {[%clk 0:01:42.8]} 70... Re2
{[%clk 0:00:23.3]} 71. Ra6 {[%clk 0:01:43]} 71... Re1 {[%clk 0:00:23.6]} 72. Rb6
{[%clk 0:01:42.7]} 1/2-1/2

[Event "Late-Titled-Tuesday-Blitz-April-16-2024"]
[Site "Chess.com"]
[Date "2024.04.16"]
[Round "9"]
[White "JaackCamel"]
[Black "dianamirza"]
[Result "0-1"]
[WhiteElo "2224"]
[BlackElo "1964"]
[TimeControl "180+1"]
[EndTime "15:43:25 PDT"]
[Termination "dianamirza won on time"]

1. d4 {[%clk 0:03:00.9]} 1... Nf6 {[%clk 0:02:50.5]} 2. c4 {[%clk 0:03:00.2]}
2... d6 {[%clk 0:02:41.1]} 3. Nf3 {[%clk 0:02:59.2]} 3... g6 {[%clk 0:02:41]} 4.
Nc3 {[%clk 0:02:58.4]} 4... Bg7 {[%clk 0:02:41.6]} 5. e4 {[%clk 0:02:58.3]} 5...
O-O {[%clk 0:02:41.7]} 6. Be2 {[%clk 0:02:58.1]} 6... c5 {[%clk 0:02:41.6]} 7.
d5 {[%clk 0:02:57.4]} 7... Bd7 {[%clk 0:02:39]} 8. O-O {[%clk 0:02:56.9]} 8...
Na6 {[%clk 0:02:38.9]} 9. h3 {[%clk 0:02:55.1]} 9... Nc7 {[%clk 0:02:39.1]} 10.
Re1 {[%clk 0:02:45.4]} 10... Rb8 {[%clk 0:02:39.1]} 11. a4 {[%clk 0:02:30.6]}
11... a6 {[%clk 0:02:38.6]} 12. Bf4 {[%clk 0:02:12]} 12... b5 {[%clk 0:02:25.4]}
13. axb5 {[%clk 0:01:54.8]} 13... axb5 {[%clk 0:02:26.3]} 14. b3 {[%clk
0:01:40.2]} 14... bxc4 {[%clk 0:02:25.2]} 15. bxc4 {[%clk 0:01:37.4]} 15... Nh5
{[%clk 0:02:20.8]} 16. Bd2 {[%clk 0:01:33.6]} 16... e6 {[%clk 0:02:05.7]} 17.
Rc1 {[%clk 0:01:30.4]} 17... exd5 {[%clk 0:02:04]} 18. exd5 {[%clk 0:01:27.6]}
18... Na6 {[%clk 0:02:01.7]} 19. Ng5 {[%clk 0:01:18.5]} 19... Nf6 {[%clk
0:01:57.4]} 20. Bf4 {[%clk 0:01:14]} 20... Bc8 {[%clk 0:01:48.1]} 21. Nb5 {[%clk
0:01:05.7]} 21... Ne8 {[%clk 0:01:39.7]} 22. Ne4 {[%clk 0:01:00.9]} 22... Be5
{[%clk 0:01:34.8]} 23. Qd2 {[%clk 0:00:42.3]} 23... f5 {[%clk 0:01:31.5]} 24.
Ng5 {[%clk 0:00:36.1]} 24... Nf6 {[%clk 0:01:24]} 25. Bf3 {[%clk 0:00:28.2]}
25... h6 {[%clk 0:01:20.3]} 26. Ne6 {[%clk 0:00:16.2]} 26... Bxe6 {[%clk
0:01:20.3]} 27. dxe6 {[%clk 0:00:15.3]} 27... Bxf4 {[%clk 0:01:15.1]} 28. Qxf4
{[%clk 0:00:14]} 28... Qe7 {[%clk 0:01:02]} 29. Qxh6 {[%clk 0:00:12.9]} 29...
Qg7 {[%clk 0:00:55.9]} 30. Qg5 {[%clk 0:00:12.4]} 30... Ne8 {[%clk 0:00:48.3]}
31. Rcd1 {[%clk 0:00:08.4]} 31... Nb4 {[%clk 0:00:46.1]} 32. Bd5 {[%clk
0:00:07]} 32... Kh8 {[%clk 0:00:39.4]} 33. Qh4+ {[%clk 0:00:01.9]} 33... Qh7
{[%clk 0:00:38.7]} 0-1

[Event "Late-Titled-Tuesday-Blitz-April-16-2024"]
[Site "Chess.com"]
[Date "2024.04.16"]
[Round "9"]
[White "manitodeplomo"]
[Black "KaydenTroffChess"]
[Result "0-1"]
[WhiteElo "2639"]
[BlackElo "2856"]
[TimeControl "180+1"]
[EndTime "15:43:27 PDT"]
[Termination "KaydenTroffChess won on time"]

1. d4 {[%clk 0:03:00.9]} 1... Nf6 {[%clk 0:02:58.9]} 2. c4 {[%clk 0:02:59.5]}
2... g6 {[%clk 0:02:59.1]} 3. Nc3 {[%clk 0:02:58.2]} 3... d5 {[%clk 0:02:59.4]}
4. Qa4+ {[%clk 0:02:54.3]} 4... c6 {[%clk 0:02:54.9]} 5. Bg5 {[%clk 0:02:52.6]}
5... Nbd7 {[%clk 0:02:49.1]} 6. cxd5 {[%clk 0:02:44.4]} 6... Nb6 {[%clk
0:02:48.6]} 7. Qb3 {[%clk 0:02:37.2]} 7... Nfxd5 {[%clk 0:02:47.6]} 8. e4 {[%clk
0:02:24.1]} 8... Nxc3 {[%clk 0:02:41.2]} 9. bxc3 {[%clk 0:02:25]} 9... Bg7
{[%clk 0:02:38.5]} 10. Nf3 {[%clk 0:02:23.8]} 10... O-O {[%clk 0:02:34.6]} 11.
Be2 {[%clk 0:02:16.9]} 11... Be6 {[%clk 0:02:34.5]} 12. Qc2 {[%clk 0:02:15.5]}
12... h6 {[%clk 0:02:26.1]} 13. Bf4 {[%clk 0:02:04.8]} 13... Bc4 {[%clk
0:02:23.2]} 14. O-O {[%clk 0:02:04.4]} 14... c5 {[%clk 0:02:05.7]} 15. d5 {[%clk
0:01:56.6]} 15... Bxe2 {[%clk 0:02:00]} 16. Qxe2 {[%clk 0:01:56.2]} 16... Na4
{[%clk 0:01:25.1]} 17. Rac1 {[%clk 0:01:26.9]} 17... Nxc3 {[%clk 0:01:20.8]} 18.
Qe3 {[%clk 0:01:20.9]} 18... Nxa2 {[%clk 0:01:04.3]} 19. Rxc5 {[%clk 0:01:17.8]}
19... Qb6 {[%clk 0:01:03]} 20. Bxh6 {[%clk 0:01:05.1]} 20... Rac8 {[%clk
0:00:43.6]} 21. Rxc8 {[%clk 0:00:50.6]} 21... Rxc8 {[%clk 0:00:43.1]} 22. Qf4
{[%clk 0:00:03.2]} 22... Nc3 {[%clk 0:00:37.5]} 23. Qh4 {[%clk 0:00:02.1]} 23...
Bxh6 {[%clk 0:00:18.9]} 24. Qxh6 {[%clk 0:00:01.7]} 24... Qf6 {[%clk 0:00:16.8]}
0-1

[Event "Late-Titled-Tuesday-Blitz-April-16-2024"]
[Site "Chess.com"]
[Date "2024.04.16"]
[Round "9"]
[White "BeanScreen"]
[Black "PotapovaM"]
[Result "1-0"]
[WhiteElo "2676"]
[BlackElo "2546"]
[TimeControl "180+1"]
[EndTime "15:43:29 PDT"]
[Termination "BeanScreen won by resignation"]

1. e4 {[%clk 0:03:00.9]} 1... c5 {[%clk 0:02:55.5]} 2. Nf3 {[%clk 0:03:00.7]}
2... d6 {[%clk 0:02:54.8]} 3. d4 {[%clk 0:03:00.7]} 3... cxd4 {[%clk 0:02:55.7]}
4. Nxd4 {[%clk 0:03:01.3]} 4... Nf6 {[%clk 0:02:55.7]} 5. Nc3 {[%clk 0:03:01.7]}
5... a6 {[%clk 0:02:56.2]} 6. Be3 {[%clk 0:03:02.1]} 6... e5 {[%clk 0:02:56.3]}
7. Nb3 {[%clk 0:03:02.3]} 7... Be7 {[%clk 0:02:54.2]} 8. h3 {[%clk 0:03:02.2]}
8... Be6 {[%clk 0:02:49.3]} 9. Qf3 {[%clk 0:03:01.6]} 9... O-O {[%clk 0:02:46]}
10. O-O-O {[%clk 0:03:00.9]} 10... b5 {[%clk 0:02:43.1]} 11. g4 {[%clk
0:02:56.2]} 11... b4 {[%clk 0:02:42.9]} 12. Na4 {[%clk 0:02:51.4]} 12... h6
{[%clk 0:02:40.2]} 13. Nb6 {[%clk 0:02:44.2]} 13... Ra7 {[%clk 0:02:39.7]} 14.
Nd5 {[%clk 0:02:44.8]} 14... Rb7 {[%clk 0:02:36.5]} 15. Nc5 {[%clk 0:02:41.7]}
15... Bxd5 {[%clk 0:02:29.1]} 16. exd5 {[%clk 0:02:33.7]} 16... dxc5 {[%clk
0:02:28.8]} 17. d6 {[%clk 0:02:33.8]} 17... Bxd6 {[%clk 0:02:29.2]} 18. Qxb7
{[%clk 0:02:33]} 18... Qe7 {[%clk 0:02:03.8]} 19. Qxe7 {[%clk 0:02:23.7]} 19...
Bxe7 {[%clk 0:02:04.7]} 20. g5 {[%clk 0:02:12.5]} 20... hxg5 {[%clk 0:02:01.4]}
21. Bxg5 {[%clk 0:02:13.4]} 21... Re8 {[%clk 0:01:55.9]} 22. Bc4 {[%clk
0:02:05.9]} 22... Nc6 {[%clk 0:01:51.4]} 23. Bxa6 {[%clk 0:02:04.5]} 23... Nd4
{[%clk 0:01:50.7]} 24. c3 {[%clk 0:02:03.2]} 24... Nf3 {[%clk 0:01:44.3]} 25.
Be3 {[%clk 0:01:57.5]} 25... bxc3 {[%clk 0:01:42.6]} 26. bxc3 {[%clk 0:01:58.4]}
26... Ne4 {[%clk 0:01:30.9]} 27. Bb7 {[%clk 0:01:56.6]} 27... f5 {[%clk
0:01:25.5]} 28. Bxe4 {[%clk 0:01:32]} 28... fxe4 {[%clk 0:01:26.4]} 29. Rd7
{[%clk 0:01:31.9]} 29... Bf6 {[%clk 0:01:24.5]} 30. Bxc5 {[%clk 0:01:30.4]}
30... Rc8 {[%clk 0:01:24.5]} 31. Bb4 {[%clk 0:01:29]} 31... Bh4 {[%clk
0:01:20.8]} 32. Rf1 {[%clk 0:01:22.7]} 32... Bg5+ {[%clk 0:00:49]} 33. Kc2
{[%clk 0:01:15.5]} 33... Bf4 {[%clk 0:00:38.8]} 34. a4 {[%clk 0:01:09.1]} 34...
g5 {[%clk 0:00:26.5]} 35. a5 {[%clk 0:01:08.3]} 35... Nd4+ {[%clk 0:00:26.6]}
36. Kb2 {[%clk 0:01:06.8]} 36... Nc6 {[%clk 0:00:27.2]} 37. a6 {[%clk
0:01:02.7]} 37... Ra8 {[%clk 0:00:24]} 38. Ra1 {[%clk 0:01:02]} 38... e3 {[%clk
0:00:21.3]} 39. fxe3 {[%clk 0:01:01.1]} 39... Bxe3 {[%clk 0:00:22.2]} 40. Rd6
{[%clk 0:00:54.3]} 40... Nxb4 {[%clk 0:00:22.1]} 41. cxb4 {[%clk 0:00:53.7]} 1-0

[Event "Late-Titled-Tuesday-Blitz-April-16-2024"]
[Site "Chess.com"]
[Date "2024.04.16"]
[Round "9"]
[White "kleinebeer98"]
[Black "Hikaru"]
[Result "0-1"]
[WhiteElo "2907"]
[BlackElo "3292"]
[TimeControl "180+1"]
[EndTime "15:43:30 PDT"]
[Termination "Hikaru won by resignation"]

1. e4 {[%clk 0:03:00.9]} 1... e5 {[%clk 0:02:56.5]} 2. Nf3 {[%clk 0:03:00.5]}
2... Nc6 {[%clk 0:02:56.6]} 3. d4 {[%clk 0:03:00.9]} 3... exd4 {[%clk
0:02:56.5]} 4. Bc4 {[%clk 0:03:01.6]} 4... Nf6 {[%clk 0:02:57.2]} 5. e5 {[%clk
0:03:01.3]} 5... d5 {[%clk 0:02:56.7]} 6. Bb5 {[%clk 0:03:01.9]} 6... Ne4 {[%clk
0:02:56.7]} 7. Nxd4 {[%clk 0:03:00.3]} 7... Bd7 {[%clk 0:02:56.7]} 8. Bxc6
{[%clk 0:02:53.9]} 8... bxc6 {[%clk 0:02:57.6]} 9. O-O {[%clk 0:02:54.3]} 9...
c5 {[%clk 0:02:55.6]} 10. Nb3 {[%clk 0:02:42.2]} 10... c6 {[%clk 0:02:43.3]} 11.
f3 {[%clk 0:02:38.7]} 11... Ng5 {[%clk 0:02:41.8]} 12. f4 {[%clk 0:02:38.3]}
12... Ne4 {[%clk 0:02:41.3]} 13. N1d2 {[%clk 0:02:24.3]} 13... Nxd2 {[%clk
0:02:28]} 14. Bxd2 {[%clk 0:02:17.4]} 14... c4 {[%clk 0:02:27]} 15. Nd4 {[%clk
0:02:11.4]} 15... c5 {[%clk 0:02:27.5]} 16. Ne2 {[%clk 0:02:03.6]} 16... d4
{[%clk 0:02:23.9]} 17. f5 {[%clk 0:01:47]} 17... g6 {[%clk 0:02:19.6]} 18. e6
{[%clk 0:01:43.6]} 18... fxe6 {[%clk 0:02:18.7]} 19. fxe6 {[%clk 0:01:43]} 19...
Bc6 {[%clk 0:02:16.1]} 20. Ng3 {[%clk 0:01:27.4]} 20... Qd5 {[%clk 0:02:09]} 21.
Qe2 {[%clk 0:01:21.9]} 21... O-O-O {[%clk 0:02:08.5]} 22. Rae1 {[%clk
0:01:12.7]} 22... Be7 {[%clk 0:02:04.9]} 23. Rf7 {[%clk 0:01:10.8]} 23... Rhe8
{[%clk 0:01:51.5]} 24. b3 {[%clk 0:01:04.5]} 24... d3 {[%clk 0:01:49.3]} 25.
cxd3 {[%clk 0:01:00.3]} 25... cxd3 {[%clk 0:01:49.2]} 26. Qf2 {[%clk 0:00:54.4]}
26... Rd6 {[%clk 0:01:48.9]} 27. Rf3 {[%clk 0:00:31.7]} 27... Bd8 {[%clk
0:01:39.8]} 28. Rc1 {[%clk 0:00:27.8]} 28... Bb6 {[%clk 0:01:36]} 29. Be3 {[%clk
0:00:27.6]} 29... Rdxe6 {[%clk 0:01:36.1]} 30. Nf1 {[%clk 0:00:19.9]} 30... d2
{[%clk 0:00:40.6]} 31. Rd1 {[%clk 0:00:11.9]} 31... Qh5 {[%clk 0:00:40.7]} 32.
Bf4 {[%clk 0:00:02.4]} 32... c4 {[%clk 0:00:39]} 33. Be3 {[%clk 0:00:01.8]}
33... Rxe3 {[%clk 0:00:35.1]} 34. Nxe3 {[%clk 0:00:02.7]} 34... Bxe3 {[%clk
0:00:32.2]} 0-1

[Event "Late-Titled-Tuesday-Blitz-April-16-2024"]
[Site "Chess.com"]
[Date "2024.04.16"]
[Round "9"]
[White "Mariia89"]
[Black "jinxy2009"]
[Result "0-1"]
[WhiteElo "2225"]
[BlackElo "2307"]
[TimeControl "180+1"]
[EndTime "15:43:30 PDT"]
[Termination "jinxy2009 won on time"]

1. d4 {[%clk 0:02:59.8]} 1... Nf6 {[%clk 0:02:59.7]} 2. Nf3 {[%clk 0:02:59.7]}
2... g6 {[%clk 0:02:58.7]} 3. c4 {[%clk 0:02:59.5]} 3... Bg7 {[%clk 0:02:59]} 4.
Nc3 {[%clk 0:03:00.2]} 4... d5 {[%clk 0:02:59.3]} 5. Bg5 {[%clk 0:02:59.9]} 5...
O-O {[%clk 0:02:59.2]} 6. e3 {[%clk 0:02:59.8]} 6... Ne4 {[%clk 0:02:58.9]} 7.
cxd5 {[%clk 0:02:57.8]} 7... Nxg5 {[%clk 0:02:57.9]} 8. Nxg5 {[%clk 0:02:57.9]}
8... e6 {[%clk 0:02:58.4]} 9. Nf3 {[%clk 0:02:58.3]} 9... exd5 {[%clk
0:02:58.5]} 10. Be2 {[%clk 0:02:59]} 10... Bf5 {[%clk 0:02:57.4]} 11. O-O {[%clk
0:02:58.9]} 11... c6 {[%clk 0:02:57.8]} 12. b4 {[%clk 0:02:55.7]} 12... Nd7
{[%clk 0:02:56.6]} 13. a4 {[%clk 0:02:49.5]} 13... Nb6 {[%clk 0:02:53.9]} 14.
Qb3 {[%clk 0:02:44.6]} 14... Be6 {[%clk 0:02:52.1]} 15. Rfc1 {[%clk 0:02:38.1]}
15... Nc4 {[%clk 0:02:52.2]} 16. h3 {[%clk 0:02:28.8]} 16... h6 {[%clk
0:02:34.9]} 17. Qa2 {[%clk 0:02:07.2]} 17... Qe7 {[%clk 0:02:23.2]} 18. Rab1
{[%clk 0:02:06.4]} 18... a6 {[%clk 0:02:23.3]} 19. a5 {[%clk 0:01:58.8]} 19...
Rae8 {[%clk 0:02:16.3]} 20. Na4 {[%clk 0:01:51.7]} 20... f5 {[%clk 0:02:10.8]}
21. Nc5 {[%clk 0:01:43.2]} 21... Bf7 {[%clk 0:02:07.8]} 22. Bf1 {[%clk
0:01:15.5]} 22... g5 {[%clk 0:02:05.8]} 23. Nd3 {[%clk 0:00:48.8]} 23... g4
{[%clk 0:01:54.7]} 24. hxg4 {[%clk 0:00:46.2]} 24... fxg4 {[%clk 0:01:54.8]} 25.
Nd2 {[%clk 0:00:47.1]} 25... g3 {[%clk 0:01:41.2]} 26. Nxc4 {[%clk 0:00:35.1]}
26... dxc4 {[%clk 0:01:39.9]} 27. Ne5 {[%clk 0:00:25.7]} 27... Bxe5 {[%clk
0:01:36.6]} 28. dxe5 {[%clk 0:00:25.4]} 28... Qxe5 {[%clk 0:01:37.5]} 29. Bxc4
{[%clk 0:00:23.1]} 29... gxf2+ {[%clk 0:01:37.6]} 30. Qxf2 {[%clk 0:00:23]}
30... Bxc4 {[%clk 0:01:37.3]} 31. Qd2 {[%clk 0:00:09.2]} 31... Bd5 {[%clk
0:01:34]} 32. Rc3 {[%clk 0:00:08.4]} 32... Qe4 {[%clk 0:01:23.5]} 33. Rb2 {[%clk
0:00:05]} 33... Rf7 {[%clk 0:01:19.1]} 34. Rc1 {[%clk 0:00:02.8]} 34... Ref8
{[%clk 0:01:18.2]} 35. Re1 {[%clk 0:00:02.6]} 35... Rg7 {[%clk 0:01:17.8]} 36.
Rf1 {[%clk 0:00:01.3]} 36... Rxf1+ {[%clk 0:01:16.1]} 37. Kxf1 {[%clk
0:00:02.2]} 37... Rxg2 {[%clk 0:01:12.3]} 38. Qxg2+ {[%clk 0:00:02.3]} 38...
Qxg2+ {[%clk 0:01:12.8]} 39. Rxg2+ {[%clk 0:00:02.4]} 39... Bxg2+ {[%clk
0:01:13.5]} 40. Kxg2 {[%clk 0:00:03.2]} 40... Kf7 {[%clk 0:01:14.2]} 41. Kg3
{[%clk 0:00:02.8]} 41... Ke6 {[%clk 0:01:14.7]} 42. Kf4 {[%clk 0:00:03]} 42...
h5 {[%clk 0:01:11.7]} 43. e4 {[%clk 0:00:02.7]} 43... h4 {[%clk 0:01:11.6]} 0-1

[Event "Late-Titled-Tuesday-Blitz-April-16-2024"]
[Site "Chess.com"]
[Date "2024.04.16"]
[Round "9"]
[White "Kimkibo"]
[Black "MathiasWomacka"]
[Result "0-1"]
[WhiteElo "2382"]
[BlackElo "2503"]
[TimeControl "180+1"]
[EndTime "15:43:32 PDT"]
[Termination "MathiasWomacka won by resignation"]

1. d4 {[%clk 0:03:00.6]} 1... Nf6 {[%clk 0:02:58.7]} 2. Nf3 {[%clk 0:02:59.7]}
2... e6 {[%clk 0:02:58.3]} 3. Bf4 {[%clk 0:02:59.6]} 3... c5 {[%clk 0:02:57.3]}
4. e3 {[%clk 0:02:57.9]} 4... d5 {[%clk 0:02:56.5]} 5. c3 {[%clk 0:02:57.4]}
5... Bd6 {[%clk 0:02:56.6]} 6. Bg3 {[%clk 0:02:57.5]} 6... O-O {[%clk
0:02:55.6]} 7. Nbd2 {[%clk 0:02:57.2]} 7... Qc7 {[%clk 0:02:55.4]} 8. Bd3 {[%clk
0:02:55.7]} 8... Nbd7 {[%clk 0:02:53.9]} 9. Qe2 {[%clk 0:02:46.9]} 9... e5
{[%clk 0:02:53.5]} 10. dxe5 {[%clk 0:02:45.5]} 10... Nxe5 {[%clk 0:02:54.4]} 11.
Nxe5 {[%clk 0:02:44.9]} 11... Bxe5 {[%clk 0:02:54.3]} 12. O-O-O {[%clk
0:02:40.2]} 12... b5 {[%clk 0:02:34.4]} 13. Nf3 {[%clk 0:02:31.2]} 13... Bxg3
{[%clk 0:02:32.9]} 14. hxg3 {[%clk 0:02:31.3]} 14... Rb8 {[%clk 0:02:20.9]} 15.
g4 {[%clk 0:01:17.7]} 15... Bxg4 {[%clk 0:02:13.1]} 16. Rh4 {[%clk 0:00:54.1]}
16... h6 {[%clk 0:01:52.7]} 17. Rdh1 {[%clk 0:00:47.6]} 17... b4 {[%clk
0:01:49.6]} 18. c4 {[%clk 0:00:47.4]} 18... d4 {[%clk 0:01:30]} 19. e4 {[%clk
0:00:44.4]} 19... Rfe8 {[%clk 0:01:15.2]} 20. Qd2 {[%clk 0:00:34.2]} 20... Nxe4
{[%clk 0:00:34.3]} 21. Bxe4 {[%clk 0:00:30.8]} 21... Rxe4 {[%clk 0:00:35.2]} 22.
Ng5 {[%clk 0:00:28]} 22... Re2 {[%clk 0:00:30.5]} 23. Qd3 {[%clk 0:00:14.4]}
23... Qf4+ {[%clk 0:00:30]} 24. Kb1 {[%clk 0:00:13.8]} 24... Qxg5 {[%clk
0:00:28.9]} 25. Ka1 {[%clk 0:00:13.4]} 25... Rxf2 {[%clk 0:00:27.8]} 26. Qg3
{[%clk 0:00:10.9]} 26... Rf4 {[%clk 0:00:26.1]} 27. b3 {[%clk 0:00:04.6]} 27...
Re8 {[%clk 0:00:25.6]} 0-1

[Event "Late-Titled-Tuesday-Blitz-April-16-2024"]
[Site "Chess.com"]
[Date "2024.04.16"]
[Round "9"]
[White "Respectful_Dave"]
[Black "Slovineanu"]
[Result "1-0"]
[WhiteElo "2396"]
[BlackElo "2466"]
[TimeControl "180+1"]
[EndTime "15:43:33 PDT"]
[Termination "Respectful_Dave won by resignation"]

1. c4 {[%clk 0:03:00.9]} 1... e5 {[%clk 0:02:56]} 2. Nc3 {[%clk 0:03:00.4]} 2...
Bb4 {[%clk 0:02:55.5]} 3. Nf3 {[%clk 0:03:00.2]} 3... Bxc3 {[%clk 0:02:46]} 4.
bxc3 {[%clk 0:02:59.3]} 4... Nc6 {[%clk 0:02:45.7]} 5. d4 {[%clk 0:02:59.5]}
5... d6 {[%clk 0:02:43.4]} 6. dxe5 {[%clk 0:02:58]} 6... dxe5 {[%clk 0:02:41]}
7. Qxd8+ {[%clk 0:02:58.9]} 7... Kxd8 {[%clk 0:02:40.3]} 8. Ba3 {[%clk
0:02:59.5]} 8... f6 {[%clk 0:02:30.9]} 9. g3 {[%clk 0:02:59.5]} 9... Be6 {[%clk
0:02:27.9]} 10. Nd2 {[%clk 0:02:58.2]} 10... Nge7 {[%clk 0:02:20]} 11. O-O-O
{[%clk 0:02:58.3]} 11... Ke8 {[%clk 0:02:14.2]} 12. Bg2 {[%clk 0:02:57.6]} 12...
Na5 {[%clk 0:02:03.4]} 13. Bb4 {[%clk 0:02:38.3]} 13... Nec6 {[%clk 0:01:53.9]}
14. Bd5 {[%clk 0:02:28.6]} 14... Kf7 {[%clk 0:01:39.2]} 15. Ne4 {[%clk
0:02:28.4]} 15... Nxc4 {[%clk 0:01:29.1]} 16. Bxc4 {[%clk 0:02:18.9]} 16... Bxc4
{[%clk 0:01:25.4]} 17. Rd7+ {[%clk 0:02:18.9]} 17... Kg6 {[%clk 0:01:25.5]} 18.
e3 {[%clk 0:01:18.1]} 18... Rhd8 {[%clk 0:00:51.8]} 19. Rhd1 {[%clk 0:01:11.3]}
19... Bxa2 {[%clk 0:00:32.9]} 20. Nc5 {[%clk 0:01:06.6]} 20... Rxd7 {[%clk
0:00:24]} 21. Rxd7 {[%clk 0:01:06.1]} 21... b6 {[%clk 0:00:21]} 22. Na6 {[%clk
0:00:57.4]} 22... Nxb4 {[%clk 0:00:18.8]} 23. cxb4 {[%clk 0:00:57.3]} 23... c5
{[%clk 0:00:18.8]} 24. Kb2 {[%clk 0:00:49.1]} 24... Bc4 {[%clk 0:00:18]} 25. Nc7
{[%clk 0:00:43.1]} 25... Rc8 {[%clk 0:00:18]} 26. bxc5 {[%clk 0:00:35.5]} 26...
bxc5 {[%clk 0:00:18.3]} 27. Kc3 {[%clk 0:00:34.8]} 27... Be2 {[%clk 0:00:18.3]}
28. f4 {[%clk 0:00:34.8]} 28... exf4 {[%clk 0:00:17.6]} 29. exf4 {[%clk
0:00:34.5]} 29... h5 {[%clk 0:00:17.7]} 30. Ne6 {[%clk 0:00:34.6]} 30... Bg4
{[%clk 0:00:13.8]} 31. f5+ {[%clk 0:00:29.3]} 31... Bxf5 {[%clk 0:00:12.9]} 32.
Nf4+ {[%clk 0:00:29.6]} 32... Kh6 {[%clk 0:00:12.4]} 33. Rxa7 {[%clk 0:00:30.2]}
33... g5 {[%clk 0:00:12]} 34. Nd5 {[%clk 0:00:30.6]} 34... Rc6 {[%clk
0:00:11.7]} 35. Ne7 {[%clk 0:00:30.4]} 35... Bg6 {[%clk 0:00:11]} 36. Nxc6
{[%clk 0:00:30.3]} 1-0